bitfinex-derivatives/quotes_BNBF0:USTF0_20250330
["timestamp","ask_amount","ask_price","bid_price","bid_amount"]
[1743349157547,1.51450111,602.88,602.23,0.33209903]
[1743349157747,1.210263,602.91,602.23,0.33209903]
[1743349157748,1.51450111,602.87,602.23,0.33209903]
[1743349157948,1.51450111,602.86,602.23,0.33209903]
[1743349158146,1.210263,602.86,602.23,0.33209903]
[1743349158645,1.210263,602.85,602.23,0.33209903]
[1743349159242,3.38710339,602.98,602.23,0.33209903]
[1743349159445,4.8988547,602.97,602.23,0.33209903]
[1743349159648,4.8988547,602.96,602.23,0.33209903]
[1743349159847,1.51175131,602.95,602.23,0.33209903]
[1743349160049,1.51175131,602.94,602.23,0.33209903]
[1743349160248,1.51175131,602.93,602.23,0.33209903]
[1743349160451,1.51175131,602.92,602.23,0.33209903]
[1743349160651,1.51175131,602.91,602.23,0.33209903]
[1743349160848,1.51175131,602.9,602.23,0.33209903]
[1743349161047,1.20680448,602.93,602.23,0.33209903]
[1743349161350,1.20680448,602.89,602.23,0.33209903]
[1743349161753,1.93258021,603.03,602.23,0.33209903]
[1743349161948,4.89100033,603.02,602.23,0.33209903]
[1743349162143,1.50974871,603.01,602.23,0.33209903]
[1743349162346,1.50974871,603.0,602.23,0.33209903]
[1743349162547,1.50974871,602.99,602.23,0.33209903]
[1743349162751,1.50974871,602.98,602.23,0.33209903]
[1743349162948,1.50974871,602.97,602.23,0.33209903]
[1743349163148,1.50974871,602.96,602.23,0.33209903]
[1743349163355,1.20559492,602.99,602.23,0.33209903]
[1743349163548,1.20559492,602.95,602.23,0.33209903]
[1743349164349,1.92825162,603.04,602.23,0.33209903]
[1743349164550,1.50898335,603.03,602.23,0.33209903]
[1743349164745,1.50898335,603.02,602.23,0.33209903]
[1743349164946,1.50896946,603.01,602.23,0.33209903]
[1743349165151,1.50888401,603.0,602.23,0.33209903]
[1743349165350,1.50888401,602.99,602.23,0.33209903]
[1743349165554,1.50888401,602.98,602.23,0.33209903]
[1743349165753,1.50888401,602.97,602.22,0.28877391]
[1743349165955,1.20515373,602.98,602.22,0.28877391]
[1743349166150,1.50890233,602.97,602.22,0.28877391]
[1743349166354,1.20515373,602.98,602.22,0.28877391]
[1743349166657,1.20515373,602.96,602.22,0.28877391]
[1743349167454,1.92825162,603.04,602.22,0.28877391]
[1743349167649,1.50844119,603.03,602.22,0.28877391]
[1743349167851,1.50844119,603.02,602.22,0.28877391]
[1743349168051,1.50844119,603.01,602.22,0.28877391]
[1743349168250,1.50844119,603.0,602.22,0.28877391]
[1743349168450,1.50844119,602.99,601.62,2.52433408]
[1743349168652,1.50844119,602.98,601.64,0.3324247]
[1743349168857,1.20469976,603.01,601.64,0.3324247]
[1743349168858,1.20469976,603.01,601.68,2.52433408]
[1743349169056,1.50823041,603.0,601.7,0.33239155]
[1743349169260,1.20469976,602.98,601.7,0.33239155]
[1743349170452,4.11950277,602.97,601.7,0.33239155]
[1743349170654,2.61169976,602.97,601.7,0.33239155]
[1743349171157,1.20469976,602.96,601.7,0.33239155]
[1743349171860,1.551,602.95,601.7,0.33239155]
[1743349172957,3.151,602.95,601.7,0.33239155]
[1743349174460,1.20336034,602.94,601.7,0.33239155]
[1743349175358,3.151,602.95,601.7,0.33239155]
[1743349175558,1.428,602.94,601.7,0.33239155]
[1743349176160,1.2031943,602.93,601.7,0.33239155]
[1743349177461,1.428,602.94,601.7,0.33239155]
[1743349177664,1.50614908,602.93,601.7,0.33239155]
[1743349177862,1.428,602.94,601.7,0.33239155]
[1743349178063,1.20288893,602.92,601.7,0.33239155]
[1743349178764,1.428,602.94,601.7,0.33239155]
[1743349182561,1.20277939,602.93,601.7,0.33239155]
[1743349183069,1.20277939,602.93,601.76,2.52433408]
[1743349183264,1.428,602.94,601.76,2.52433408]
[1743349183467,1.50607957,602.93,601.77,0.33235289]
[1743349183666,1.428,602.94,601.77,0.33235289]
[1743349183863,1.20288262,602.92,601.77,0.33235289]
[1743349184666,1.428,602.94,601.77,0.33235289]
[1743349184864,1.50615462,602.93,601.77,0.33235289]
[1743349185067,1.428,602.94,601.8,2.52433408]
[1743349185265,1.428,602.94,601.81,0.3323308]
[1743349185470,2.70938686,602.93,601.81,0.3323308]
[1743349185771,1.50630405,602.92,601.81,0.3323308]
[1743349186069,1.20305184,602.93,601.81,0.3323308]
[1743349186070,1.20305184,602.93,601.86,2.52433408]
[1743349186369,1.20305184,602.93,601.87,0.33229767]
[1743349186571,1.20305184,602.92,601.87,0.33229767]
[1743349187470,1.428,602.94,601.91,2.52433408]
[1743349187972,1.50664425,602.93,601.91,2.52433408]
[1743349188172,1.20329663,602.93,601.91,2.52433408]
[1743349189172,1.428,602.94,601.91,2.52433408]
[1743349189471,1.428,602.94,602.02,2.52433408]
[1743349190373,3.231,602.94,602.02,2.52433408]
[1743349190576,3.231,602.94,601.87,0.33229767]
[1743349190577,3.231,602.94,602.07,2.52433408]
[1743349191074,1.20406759,602.93,602.07,2.52433408]
[1743349192169,3.231,602.94,602.07,2.52433408]
[1743349192372,1.50837443,602.93,602.06,2.52433408]
[1743349192672,1.803,602.94,602.06,2.52433408]
[1743349192974,1.50842108,602.93,602.06,2.52433408]
[1743349193168,1.50903041,602.92,602.06,2.52433408]
[1743349193368,1.20496443,602.92,602.06,2.52433408]
[1743349193874,1.803,602.94,602.06,2.52433408]
[1743349194077,1.50889868,602.93,602.06,2.52433408]
[1743349194272,1.50889868,602.92,602.06,2.52433408]
[1743349194473,1.803,602.94,602.06,2.52433408]
[1743349194671,1.509065,602.93,602.06,2.52433408]
[1743349194871,1.509065,602.92,602.06,2.52433408]
[1743349195076,1.50925482,602.91,602.02,2.52433408]
[1743349195274,1.20538161,602.91,602.02,2.52433408]
[1743349195774,1.803,602.94,602.02,2.52433408]
[1743349195974,1.5092628,602.93,602.02,2.52433408]
[1743349196170,1.5092628,602.92,602.02,2.52433408]
[1743349196372,1.5092628,602.91,602.02,2.52433408]
[1743349196574,1.50948754,602.9,602.02,2.52433408]
[1743349196775,3.013,602.91,602.06,2.52433408]
[1743349197076,1.5094875,602.9,602.06,2.52433408]
[1743349197275,3.013,602.91,602.06,2.52433408]
[1743349197476,1.50975976,602.9,602.06,2.52433408]
[1743349197673,3.013,602.91,602.06,2.52433408]
[1743349197870,1.50972161,602.9,602.06,2.52433408]
[1743349198076,3.013,602.91,602.06,2.52433408]
[1743349198278,1.50994868,602.9,602.06,2.52433408]
[1743349198576,2.71591362,602.89,602.06,2.52433408]
[1743349198777,1.20596494,602.89,602.06,2.52433408]
[1743349199077,3.013,602.91,602.06,2.52433408]
[1743349199271,1.51027946,602.9,602.06,2.52433408]
[1743349199473,1.51027946,602.89,602.06,2.52433408]
[1743349199676,1.51029734,602.88,602.06,2.52433408]
[1743349199873,3.013,602.91,602.06,2.52433408]
[1743349200076,1.51029516,602.9,602.06,2.52433408]
[1743349200275,1.51029516,602.89,602.06,2.52433408]
[1743349200475,3.013,602.91,602.01,0.28881705]
[1743349200476,1.51029516,602.88,602.05,2.52433408]
[1743349200674,1.51029516,602.87,602.05,2.52433408]
[1743349200879,1.51029516,602.86,602.05,2.52433408]
[1743349201071,1.51029516,602.85,602.05,2.52433408]
[1743349201277,1.51029516,602.84,602.05,2.52433408]
[1743349201472,1.51011424,602.83,602.05,2.52433408]
[1743349201673,1.51011424,602.82,602.05,2.52433408]
[1743349201874,1.20621666,602.82,602.05,2.52433408]
[1743349202278,1.20621666,602.82,602.01,0.28881705]
[1743349202877,1.20621666,602.81,602.01,0.28881705]
[1743349203578,1.20621666,602.8,602.01,0.28881705]
[1743349203979,3.013,602.91,602.01,0.28881705]
[1743349204179,2.47782959,602.9,602.01,0.28881705]
[1743349204479,2.71822523,602.89,601.87,0.33229767]
[1743349204675,1.51109109,602.88,602.01,0.28884222]
[1743349204876,1.51109109,602.87,602.01,0.28884222]
[1743349205073,1.51109109,602.86,601.87,0.33229767]
[1743349205280,1.51192281,602.85,601.87,0.33229767]
[1743349205480,1.51192281,602.84,601.87,0.33229767]
[1743349205681,1.20713414,602.85,601.87,0.33229767]
[1743349205880,1.51188385,602.84,601.87,0.33229767]
[1743349206078,1.51188385,602.83,601.87,0.33229767]
[1743349206279,1.51188385,602.82,601.87,0.33229767]
[1743349206480,1.20713414,602.84,601.87,0.33229767]
[1743349206779,1.51228508,602.83,601.87,0.33229767]
[1743349206983,1.51228508,602.82,601.88,0.28890817]
[1743349207182,1.20713414,602.83,601.88,0.28890817]
[1743349207480,1.51259478,602.82,601.87,0.33229767]
[1743349207682,1.51259478,602.81,601.87,0.33229767]
[1743349207875,1.20713414,602.82,601.88,0.28885541]
[1743349208079,1.51319812,602.81,601.88,0.28885541]
[1743349208280,1.20713414,602.82,601.88,0.28885541]
[1743349208981,1.20713414,602.81,601.88,0.28885541]
[1743349209477,1.51449152,602.8,601.88,0.28885541]
[1743349209682,1.20713414,602.81,601.88,0.28885541]
[1743349209882,1.20713414,602.8,601.88,0.28885541]
[1743349210282,1.51515975,602.79,601.88,0.28885541]
[1743349210480,1.20713414,602.8,601.87,0.33229767]
[1743349210676,1.20713414,602.78,601.88,0.28885301]
[1743349211685,1.20713414,602.77,601.88,0.28885301]
[1743349212283,1.51690224,602.76,601.88,0.28885301]
[1743349212484,1.669,602.91,601.88,0.28885301]
[1743349212681,4.91420661,602.9,601.88,0.28885301]
[1743349212879,4.91420661,602.89,601.88,0.28885301]
[1743349213080,4.91420661,602.88,601.88,0.28885301]
[1743349213282,4.91420661,602.87,601.88,0.28885301]
[1743349213483,4.91420661,602.86,601.87,0.33229767]
[1743349213783,4.91420661,602.85,601.88,0.28885781]
[1743349213977,4.91420661,602.84,601.88,0.28885781]
[1743349214178,4.91420661,602.83,601.88,0.28885781]
[1743349214381,4.91420661,602.82,601.88,0.28885781]
[1743349214578,4.91420661,602.81,601.88,0.28885781]
[1743349214779,2.48715061,602.8,601.88,0.28885781]
[1743349214983,1.51691,602.79,601.88,0.28885781]
[1743349215178,3.14986212,602.81,601.88,0.28885781]
[1743349215179,1.51691,602.78,601.88,0.28885781]
[1743349215383,2.72839543,602.77,601.88,0.28885781]
[1743349215584,1.51691,602.76,601.88,0.28885781]
[1743349215785,1.51691,602.75,601.88,0.28885781]
[1743349216083,1.21148543,602.74,601.88,0.28885781]
[1743349216483,1.21148543,602.74,601.87,0.33229767]
[1743349216685,2.56048543,602.73,601.87,0.33229767]
[1743349216881,2.56048543,602.73,601.88,0.28887339]
[1743349217486,1.349,602.73,601.88,0.28887339]
[1743349219489,1.451,602.72,601.87,0.33229767]
[1743349220285,1.51645491,602.71,601.93,2.52433408]
[1743349220591,1.51645491,602.7,601.93,2.52433408]
[1743349220795,1.51645491,602.69,601.93,2.52433408]
[1743349221087,1.51645491,602.68,601.93,2.52433408]
[1743349221286,1.51645491,602.67,601.93,2.52433408]
[1743349221491,1.51645491,602.66,601.93,2.52433408]
[1743349221690,2.48593336,602.65,601.93,2.52433408]
[1743349221992,2.48593336,602.64,601.93,2.52433408]
[1743349222184,2.48528596,602.63,601.93,2.52433408]
[1743349222391,1.51645491,602.62,601.87,0.33229767]
[1743349222597,1.51645491,602.61,601.87,0.33229767]
[1743349222792,1.51645491,602.6,601.91,0.28892976]
[1743349222988,1.51645491,602.59,601.91,0.28892976]
[1743349223187,1.51645491,602.58,601.91,0.28892976]
[1743349223387,1.51645491,602.57,601.91,0.28892976]
[1743349223592,1.21109854,602.58,601.91,0.28892976]
[1743349223792,1.51401255,602.57,601.91,0.28892976]
[1743349223996,1.21109854,602.56,601.91,0.28892976]
[1743349224599,1.877,602.61,601.91,0.28892976]
[1743349224891,1.794,602.55,601.91,0.28892976]
[1743349225498,1.794,602.55,601.87,0.33229767]
[1743349225998,1.794,602.55,601.91,0.28894415]
[1743349228504,1.794,602.55,601.87,0.33229767]
[1743349228698,1.794,602.55,601.91,0.28892496]
[1743349231602,1.794,602.55,601.87,0.33229767]
[1743349231801,1.794,602.55,601.91,0.28892496]
[1743349234600,1.794,602.55,601.87,0.33229767]
[1743349234804,1.20664579,602.54,601.87,0.33229767]
[1743349234998,1.20664579,602.54,601.91,0.28894895]
[1743349235603,1.20664579,602.53,601.91,0.28894895]
[1743349236603,1.20664579,602.52,601.91,0.28894895]
[1743349237005,1.794,602.55,601.91,0.28894895]
[1743349237601,1.794,602.55,601.87,0.33229767]
[1743349237803,1.20556617,602.54,601.91,0.28894895]
[1743349238599,1.794,602.55,601.91,0.28894895]
[1743349239900,1.20496608,602.54,601.91,0.28894895]
[1743349240502,1.20496608,602.54,601.87,0.33229767]
[1743349240706,1.20496608,602.53,601.91,0.28895974]
[1743349241707,1.794,602.55,601.91,0.28895974]
[1743349242108,1.646,602.54,601.91,0.28895974]
[1743349242305,2.85028931,602.54,601.91,0.28895974]
[1743349243205,1.646,602.54,601.91,0.28895974]
[1743349243401,1.646,602.54,600.56,2.52433408]
[1743349243705,1.646,602.54,600.58,0.33301142]
[1743349243908,1.646,602.54,601.91,0.28911699]
[1743349244111,1.646,602.54,600.58,0.33301142]
[1743349244302,1.646,602.54,600.9,2.52433408]
[1743349245009,1.646,602.54,600.92,0.332823]
[1743349245302,1.646,602.54,601.29,2.52433408]
[1743349245509,1.646,602.54,601.3,0.33261267]
[1743349245908,1.20346835,602.53,601.3,0.33261267]
[1743349246413,2.70975389,602.52,601.3,0.33261267]
[1743349246610,1.20346835,602.52,601.3,0.33261267]
[1743349247310,1.20346835,602.51,601.3,0.33261267]
[1743349248105,1.20346835,602.5,601.3,0.33261267]
[1743349249011,1.646,602.54,601.3,0.33261267]
[1743349249213,1.502,602.49,601.3,0.33261267]
[1743349249909,1.8,602.48,601.3,0.33261267]
[1743349264228,1.368,602.47,601.3,0.33261267]
[1743349266228,1.368,602.47,601.3,2.85694675]
[1743349267921,1.607,602.46,601.3,2.85694675]
[1743349268828,1.607,602.46,601.3,0.33261267]
[1743349270027,1.607,602.46,601.6,2.52433408]
[1743349270227,1.607,602.46,601.61,0.33244128]
[1743349271630,1.607,602.46,601.66,2.52433408]
[1743349272929,1.607,602.46,601.61,0.33244128]
[1743349272930,1.607,602.46,601.67,2.52433408]
[1743349274232,1.607,602.46,601.66,2.52433408]
[1743349275733,2.109,602.45,601.66,2.52433408]
[1743349276233,2.109,602.45,601.64,2.52433408]
[1743349276430,2.109,602.45,601.64,2.85675878]
[1743349276630,2.109,602.45,601.65,0.33241918]
[1743349278033,2.109,602.45,601.71,2.52433408]
[1743349279033,4.03,602.45,601.71,2.52433408]
[1743349279431,4.03,602.45,601.65,0.33241918]
[1743349283034,5.371,602.45,601.65,0.33241918]
[1743349289138,7.352,602.45,601.65,0.33241918]
[1743349292043,7.352,602.45,601.73,2.52433408]
[1743349292244,7.352,602.45,601.74,0.33236946]
[1743349297346,7.34605903,602.45,601.74,0.33236946]
[1743349300251,8.80505903,602.45,601.74,0.33236946]
[1743349304767,8.80505903,602.45,601.8,2.52433408]
[1743349305058,8.80505903,602.45,601.81,0.3323308]
[1743349307857,8.80505903,602.45,601.81,2.85666488]
[1743349309763,8.80505903,602.45,601.83,2.52433408]
[1743349309965,8.80505903,602.45,601.84,0.33231423]
[1743349312564,8.80505903,602.45,601.84,0.32611917]
[1743349313858,6.702,602.45,601.84,0.32611917]
[1743349326076,6.702,602.45,601.91,2.52433408]
[1743349326275,6.702,602.45,601.92,0.33227006]
[1743349327177,6.702,602.45,601.94,2.52433408]
[1743349327382,6.702,602.45,601.95,0.3322535]
[1743349328379,6.702,602.45,602.0,2.52433408]
[1743349329779,6.702,602.45,602.01,2.52433408]
[1743349331081,6.702,602.45,601.95,0.3322535]
[1743349336093,6.702,602.45,601.95,2.85658758]
[1743349337294,6.702,602.45,601.95,0.3322535]
[1743349339486,6.702,602.45,602.01,2.52433408]
[1743349339791,6.702,602.45,602.02,0.33221487]
[1743349370520,6.702,602.45,602.05,2.52433408]
[1743349372021,6.702,602.45,602.08,2.52433408]
[1743349373523,6.702,602.45,602.04,0.28883024]
[1743349375430,6.702,602.45,602.02,0.33221487]
[1743349375930,6.702,602.45,602.04,0.28883743]
[1743349376130,6.702,602.45,602.04,0.62104127]
[1743349378627,6.702,602.45,602.04,0.33220384]
[1743349378927,6.702,602.45,602.04,0.62103647]
[1743349381531,6.702,602.45,602.04,0.33220384]
[1743349381725,6.702,602.45,602.04,0.62103647]
[1743349384528,6.702,602.45,602.04,0.33220384]
[1743349384833,6.702,602.45,602.04,0.62103647]
[1743349387633,6.702,602.45,602.04,0.33220384]
[1743349387934,6.702,602.45,602.04,0.62105326]
[1743349390534,6.702,602.45,602.04,0.33220384]
[1743349390838,6.702,602.45,602.04,0.62105326]
[1743349393735,6.702,602.45,602.04,0.33220384]
[1743349393940,6.702,602.45,602.04,0.62107723]
[1743349396639,6.702,602.45,602.04,0.33220384]
[1743349397441,6.702,602.45,601.52,2.52433408]
[1743349397641,6.702,602.45,601.54,0.33247996]
[1743349408545,6.702,602.45,601.64,2.52433408]
[1743349408750,6.702,602.45,601.65,0.33241918]
[1743349425162,6.702,602.45,601.7,2.52433408]
[1743349425362,6.702,602.45,601.71,0.33238603]
[1743349426267,6.702,602.45,601.73,2.52433408]
[1743349426568,6.702,602.45,601.74,0.33236946]
[1743349428666,6.702,602.45,601.82,2.52433408]
[1743349428867,6.702,602.45,601.83,0.33231975]
[1743349430463,6.702,602.45,601.88,2.52433408]
[1743349430765,6.702,602.45,601.89,0.33228663]
[1743349432265,6.702,602.45,601.92,2.52433408]
[1743349433363,8.816,602.45,601.92,2.52433408]
[1743349434168,8.816,602.45,601.91,2.52433408]
[1743349435971,8.816,602.45,601.89,0.33228663]
[1743349478715,8.816,602.45,602.03,2.52433408]
[1743349480709,8.816,602.45,601.89,0.33228663]
[1743349481215,8.816,602.45,601.94,0.28887939]
[1743349489720,8.816,602.45,601.89,0.33228663]
[1743349490020,8.816,602.45,601.94,0.28889618]
[1743349492519,8.816,602.45,601.89,0.33228663]
[1743349492920,8.816,602.45,601.94,0.28887459]
[1743349493120,8.816,602.45,601.94,0.62113361]
[1743349494015,8.816,602.45,601.95,0.3322535]
[1743349498327,8.816,602.45,601.96,2.52433408]
[1743349499934,8.816,602.45,601.95,0.62115088]
[1743349501637,8.816,602.45,601.95,0.3322535]
[1743349502034,8.816,602.45,601.95,0.62118086]
[1743349507844,8.816,602.45,601.95,0.3322535]
[1743349509045,8.816,602.45,601.95,0.62117126]
[1743349510643,8.816,602.45,601.95,0.3322535]
[1743349511045,8.816,602.45,601.95,0.62114008]
[1743349513345,8.816,602.45,601.95,0.28888658]
[1743349515850,1.51372568,602.44,601.95,0.28888658]
[1743349516043,1.51372568,602.43,601.95,0.28888658]
[1743349516243,1.64412408,602.71,601.95,0.28888658]
[1743349516446,7.11306426,602.7,601.95,0.28888658]
[1743349516648,7.61107906,602.69,601.36,2.52433408]
[1743349516845,7.61107906,602.68,601.95,0.28901134]
[1743349517151,7.61107906,602.67,601.37,0.33257395]
[1743349517352,7.61107906,602.66,601.37,0.33257395]
[1743349517549,7.11306426,602.65,601.37,0.33257395]
[1743349517745,7.11306426,602.64,601.37,0.33257395]
[1743349517950,7.11306426,602.63,601.37,0.33257395]
[1743349518250,7.11306426,602.62,601.37,0.33257395]
[1743349518451,4.90080319,602.61,601.37,0.33257395]
[1743349518651,4.90080319,602.6,601.37,0.33257395]
[1743349518848,4.90080319,602.59,601.37,0.33257395]
[1743349519152,4.90080319,602.58,601.38,0.28903054]
[1743349519356,4.90080319,602.57,601.39,0.33256289]
[1743349519554,4.90080319,602.56,601.39,0.33256289]
[1743349519754,4.90080319,602.55,601.39,0.33256289]
[1743349519954,4.90080319,602.54,601.39,0.33256289]
[1743349520150,1.5127509,602.53,601.39,0.33256289]
[1743349520355,1.5127509,602.52,601.39,0.33256289]
[1743349520551,1.5127509,602.51,601.39,0.33256289]
[1743349520755,1.5127509,602.5,601.39,0.33256289]
[1743349520952,1.20831175,602.52,601.39,0.33256289]
[1743349521152,1.51025132,602.51,601.39,0.33256289]
[1743349521352,1.20831175,602.49,601.39,0.33256289]
[1743349522150,1.378,602.55,601.39,0.33256289]
[1743349525557,1.351,602.54,601.39,0.33256289]
[1743349534353,1.337,602.53,601.39,0.33256289]
[1743349536357,1.337,602.53,601.5,2.52433408]
[1743349536657,1.967,602.52,601.5,2.52433408]
[1743349536864,1.967,602.52,601.52,0.33249102]
[1743349545468,1.404,602.51,601.52,0.33249102]
[1743349550080,1.848,602.5,601.52,0.33249102]
[1743349552582,2.098,602.49,601.52,0.33249102]
[1743349555787,2.103,602.48,601.52,0.33249102]
[1743349561290,1.567,602.47,601.52,0.33249102]
[1743349563591,1.567,602.47,601.52,0.33249102]
[1743349565795,1.641,602.46,601.52,0.33249102]
[1743349566889,1.921,602.45,601.52,0.33249102]
[1743349567596,1.921,602.45,601.67,2.52433408]
[1743349567894,1.921,602.45,601.68,0.3324026]
[1743349569398,1.921,602.45,601.73,2.52433408]
[1743349569597,1.921,602.45,601.74,0.33236946]
[1743349570989,1.921,602.45,601.94,2.52433408]
[1743349571194,1.921,602.45,601.95,0.3322535]
[1743349578505,3.696,602.45,601.95,0.3322535]
[1743349586610,5.604,602.45,601.95,0.3322535]
[1743349597015,7.194,602.45,601.95,0.3322535]
[1743349603715,7.194,602.45,601.97,2.52433408]
[1743349603918,7.194,602.45,601.98,0.33223695]
[1743349605225,7.194,602.45,602.01,2.52433408]
[1743349605419,7.194,602.45,602.02,0.33221487]
[1743349606521,7.194,602.45,602.03,2.52433408]
[1743349606726,7.194,602.45,602.04,0.33220384]
[1743349607226,7.194,602.45,602.07,2.52433408]
[1743349607428,7.194,602.45,602.08,0.33218176]
[1743349609032,7.194,602.45,602.15,2.52433408]
[1743349609232,7.194,602.45,602.16,0.33213763]
[1743349610532,7.194,602.45,602.2,2.52433408]
[1743349610733,7.194,602.45,602.21,0.33211006]
[1743349610933,1.59,602.45,602.21,0.33211006]
[1743349612437,1.59,602.45,602.24,2.52433408]
[1743349614238,1.59,602.45,602.29,2.52433408]
[1743349615644,1.59,602.45,602.35,2.52433408]
[1743349617349,1.59,602.45,602.31,2.52433408]
[1743349618545,1.59,602.45,602.21,0.33211006]
[1743349648167,5.153,602.48,602.21,0.33211006]
[1743349649270,6.661,602.48,602.21,0.33211006]
[1743349652078,8.276,602.48,602.21,0.33211006]
[1743349686708,8.276,602.48,602.28,2.52433408]
[1743349687007,3.123,602.48,602.29,0.33206594]
[1743349688007,3.123,602.48,602.3,2.52433408]
[1743349688207,3.123,602.48,602.31,0.33205492]
[1743349705417,1.615,602.48,602.31,0.33205492]
[1743349707211,4.717,602.58,602.31,0.33205492]
[1743349709418,6.272,602.58,602.31,0.33205492]
[1743349714221,8.297,602.58,602.31,0.33205492]
[1743349726835,8.297,602.58,602.44,2.52433408]
[1743349727027,3.58,602.58,602.45,0.33197775]
[1743349728530,2.025,602.58,602.45,0.33197775]
[1743349728731,2.025,602.58,602.55,2.53077084]
[1743349729728,2.025,602.58,602.54,2.53077084]
[1743349731427,2.025,602.58,602.5,2.53077084]
[1743349731634,2.025,602.58,602.51,0.33194469]
[1743349733936,1.73638895,602.58,602.51,0.33194469]
[1743349734333,1.477,602.78,602.52,2.53077084]
[1743349734534,1.477,602.78,602.53,0.33193367]
[1743349735540,1.477,602.78,602.55,2.53077084]
[1743349735738,1.477,602.78,602.56,0.33191715]
[1743349751955,1.596,602.82,602.56,0.33191715]
[1743349755858,4.709,602.83,602.56,0.33191715]
[1743349759755,6.694,602.83,602.56,0.33191715]
[1743349786778,6.694,602.83,601.56,2.53077084]
[1743349786977,6.694,602.83,602.55,0.28867809]
[1743349787376,6.694,602.83,601.72,2.53077084]
[1743349787573,6.694,602.83,601.74,0.33236946]
[1743349789380,6.694,602.83,601.75,0.2887799]
[1743349789579,6.694,602.83,601.77,0.33235289]
[1743349792979,6.694,602.83,601.77,2.86312373]
[1743349794873,6.694,602.83,601.81,2.53077084]
[1743349795074,6.694,602.83,601.83,0.33231975]
[1743349796782,6.694,602.83,602.35,2.53077084]
[1743349797883,6.694,602.83,602.33,2.53077084]
[1743349799182,6.694,602.83,602.25,2.53077084]
[1743349799385,6.694,602.83,602.26,0.33208248]
[1743349800583,6.694,602.83,602.27,2.53077084]
[1743349801389,6.694,602.83,602.27,2.86284781]
[1743349802086,6.694,602.83,596.75,5.9365127]
[1743349802087,6.694,602.83,602.28,0.33207146]
[1743349802988,6.694,602.83,602.29,2.53077084]
[1743349803288,6.694,602.83,602.3,0.33206043]
[1743349804788,6.694,602.83,602.3,2.86283127]
[1743349806384,6.694,602.83,602.34,2.53077084]
[1743349807889,6.694,602.83,602.37,2.53077084]
[1743349809288,6.694,602.83,602.4,2.53077084]
[1743349811485,6.694,602.83,602.3,0.33206043]
[1743349811486,6.694,602.83,602.47,2.53077084]
[1743349812990,6.694,602.83,602.3,0.33206043]
[1743349829403,8.335,602.83,602.3,0.33206043]
[1743349833613,8.335,602.83,602.33,2.53077084]
[1743349835416,8.335,602.83,602.31,0.28869007]
[1743349836114,8.335,602.83,602.31,0.62074499]
[1743349837716,8.335,602.83,602.31,0.33205492]
[1743349838114,8.335,602.83,602.31,0.62074738]
[1743349838914,8.335,602.83,602.32,0.3320494]
[1743349927087,8.335,602.83,602.49,2.53077084]
[1743349927290,8.335,602.83,602.5,0.3319502]
[1743350028382,8.335,602.83,602.49,0.28875355]
[1743350029885,8.335,602.83,601.46,2.53077084]
[1743350030086,8.335,602.83,601.48,0.33251313]
[1743350031989,8.335,602.83,601.49,2.53077084]
[1743350032185,8.335,602.83,601.51,0.33249655]
[1743350038888,8.335,602.83,601.94,2.53077084]
[1743350039085,8.335,602.83,601.96,0.33224798]
[1743350040594,8.335,602.83,602.01,2.53077084]
[1743350040794,8.335,602.83,602.02,0.33221487]
[1743350075320,1.20253681,602.82,602.02,0.33221487]
[1743350076324,7.57910152,603.35,602.02,0.33221487]
[1743350076525,0.28881825,603.21,602.02,0.33221487]
[1743350076724,5.20864618,603.2,602.02,0.33221487]
[1743350077024,7.41294866,603.19,602.02,0.33221487]
[1743350077323,7.08137818,603.18,602.02,0.33221487]
[1743350077521,7.08137818,603.17,602.02,0.33221487]
[1743350077721,7.08137818,603.16,602.02,0.33221487]
[1743350077919,6.41774706,603.15,602.02,0.33221487]
[1743350078126,6.41774706,603.14,602.02,0.33221487]
[1743350078320,6.41774706,603.13,602.02,0.33221487]
[1743350078521,6.41774706,603.12,602.02,0.33221487]
[1743350078724,6.41774706,603.11,602.02,0.33221487]
[1743350078927,6.41774706,603.1,602.02,0.33221487]
[1743350079127,6.41774706,603.09,602.02,0.33221487]
[1743350079324,4.8770812,603.08,602.02,0.33221487]
[1743350079528,4.8770812,603.07,602.02,0.33221487]
[1743350079726,4.8770812,603.06,602.02,0.33221487]
[1743350079921,4.8770812,603.05,602.02,0.33221487]